bitfinex/quotes_ETHUSD_20230702
["timestamp","ask_amount","ask_price","bid_price","bid_amount"]
[1688256831585,12.99645,1923.6,1923.5,1.0]
[1688256861141,15.68397184,1923.6,1923.5,1.0]
[1688256861342,18.03214502,1923.6,1923.5,1.0]
[1688256862943,0.5,1923.4,1923.1,0.0991914]
[1688256863117,15.59898,1923.2,1923.1,0.0991914]
[1688256863312,18.28650184,1923.2,1923.1,0.0991914]
[1688256863507,20.11515202,1923.2,1923.1,0.0991914]
[1688256864339,15.68667184,1923.2,1923.1,0.0991914]
[1688256864746,15.70322098,1923.2,1923.1,0.0991914]
[1688256865410,19.20322098,1923.2,1922.7,0.0121657]
[1688256865606,19.20322098,1923.2,1922.3,0.1]
[1688256865607,15.6014,1922.9,1922.3,1.9191657]
[1688256865843,3.20407098,1922.8,1922.3,0.0621657]
[1688256866140,20.80459,1922.7,1922.3,0.0621657]
[1688256866352,2.68752184,1922.6,1922.3,0.0621657]
[1688256866649,15.62122914,1922.5,1922.3,0.0621657]
[1688256866811,20.13962608,1922.5,1922.3,0.0621657]
[1688256868248,13.0039,1922.5,1922.3,0.0621657]
[1688256869614,6.10044,1922.8,1922.4,1.337]
[1688256869615,5.20141,1922.6,1922.4,1.337]
[1688256869813,5.20158,1922.5,1922.4,1.337]
[1688256870143,13.00316,1922.5,1922.4,1.337]
[1688256871212,13.00316,1922.5,1922.3,1.4111657]
[1688256874165,13.00316,1922.5,1922.4,1.338]
[1688256875411,15.60394,1922.5,1922.4,1.338]
[1688256876320,15.60394,1922.5,1922.3,0.0621657]
[1688256876321,15.60394,1922.5,1922.3,1.4021657]
[1688256876525,15.60394,1922.5,1922.3,0.0621657]
[1688256878138,15.60394,1922.5,1922.3,1.4111657]
[1688256880762,13.00316,1922.5,1922.3,1.4111657]
[1688256880939,13.00316,1922.5,1922.3,2.60271427]
[1688256881140,13.00316,1922.5,1922.4,1.338]
[1688256881141,7.80158,1922.5,1922.4,1.338]
[1688256881555,2.6,1922.5,1922.4,1.338]
[1688256881745,2.6,1922.5,1922.4,15.69157]
[1688256882134,2.6,1922.5,1922.4,13.09066]
[1688256882330,2.6,1922.5,1922.4,14.66604357]
[1688256882937,2.6,1922.5,1922.4,17.26695357]
[1688256883147,5.20028,1923.0,1922.4,17.26695357]
[1688256883349,10.40073,1923.0,1922.9,1.348]
[1688256884981,32.97974,1923.3,1922.9,1.348]
[1688256884982,5.19977,1923.2,1922.9,11.74894]
[1688256885175,5.19922,1923.4,1923.1,1.338]
[1688256885342,5.19931,1923.4,1923.3,1.347]
[1688256885667,10.39862,1923.4,1923.3,1.347]
[1688256887240,10.39799,1923.5,1923.3,1.347]
[1688256887440,5.19896,1923.5,1923.3,1.347]
[1688256887738,5.19888,1923.5,1923.3,1.347]
[1688256887950,10.39776,1923.5,1923.3,1.347]
[1688256889276,12.99718,1923.5,1923.3,1.347]
[1688256890744,10.39776,1923.5,1923.3,1.347]
[1688256890939,12.99776,1923.5,1923.3,1.347]
[1688256891636,2.6,1923.5,1923.4,1.349]
[1688256891840,2.6,1923.5,1923.4,6.54812]
[1688256893056,10.39737,1923.6,1923.4,6.54812]
[1688256893057,5.1986,1923.6,1923.4,6.54812]
[1688256893260,5.1986,1923.6,1923.5,1.344]
[1688256894787,5.19841,1923.7,1923.5,6.54285]
[1688256895205,5.19841,1923.7,1923.5,1.344]
[1688256895340,5.19841,1923.7,1923.4,10.39805]
[1688256895543,10.39684,1923.7,1923.4,11.8969889]
[1688256898278,7.62202,1924.0,1923.6,1.344]
[1688256898279,5.19764,1924.0,1923.6,1.344]
[1688256898457,5.19764,1924.0,1923.7,6.5423]
[1688256898657,5.19763,1924.0,1923.7,6.5423]
[1688256900675,10.39526,1924.0,1923.7,6.5423]
[1688256900845,14.33520593,1924.0,1923.5,7.00355]
[1688256901049,14.33520593,1924.0,1923.5,13.5483]
[1688256901460,11.73645593,1924.0,1923.5,13.5483]
[1688256902176,11.73645593,1924.0,1923.5,16.14772]
[1688256903051,10.39526,1924.0,1923.5,17.917012]
[1688256903266,5.19763,1924.0,1923.6,1.346]
[1688256903461,7.26293931,1924.1,1923.7,12.99566]
[1688256903646,12.46040931,1924.1,1923.7,12.99566]
[1688256904255,15.05901931,1924.1,1923.7,12.99566]
[1688256904454,15.05901931,1924.1,1923.7,10.39652]
[1688256905244,5.61543931,1924.1,1923.7,12.99567]
[1688256905451,5.197,1924.2,1923.8,2.648567]
[1688256905651,5.19704,1924.2,1923.9,10.39518]
[1688256905954,12.99256,1924.2,1923.8,10.39585]
[1688256906679,10.39408,1924.2,1923.8,11.695348]
[1688256907181,10.39408,1924.2,1923.8,14.294368]
[1688256907595,10.39408,1924.2,1923.8,11.695348]
[1688256907880,12.99256,1924.2,1923.8,5.19791]
[1688256908466,12.99256,1924.2,1923.5,3.574092]
[1688256908676,12.99256,1924.2,1923.6,6.54748]
[1688256908891,12.99256,1924.2,1923.6,11.74606]
[1688256909248,14.70276,1924.2,1923.6,11.74606]
[1688256909472,14.70276,1924.2,1923.6,14.34535]
[1688256910458,14.70276,1924.2,1923.8,10.39582]
[1688256911578,14.70276,1924.2,1923.8,11.830112]
[1688256911579,10.39408,1924.2,1923.8,11.830112]
[1688256911799,1.4693266,1924.5,1923.8,17.11665384]
[1688256911800,5.19623,1924.5,1923.8,17.11665384]
[1688256912093,10.3926,1924.5,1923.8,17.11665384]
[1688256912500,10.3926,1924.5,1923.8,14.429132]
[1688256912700,5.19623,1924.5,1924.1,1.348]
[1688256912858,10.3926,1924.5,1924.2,10.39382]
[1688256915907,5.19623,1924.5,1924.2,10.39382]
[1688256916104,6.82638,1924.6,1924.2,10.39382]
[1688256916264,31.728,1924.9,1924.4,1.349]
[1688256916265,10.39054,1924.9,1924.4,1.349]
[1688256916462,10.39054,1924.9,1924.5,10.39211]
[1688256916663,12.98807,1924.9,1924.5,10.39211]
[1688256916858,12.98807,1924.9,1924.4,5.19629]
[1688256917086,15.67559184,1924.9,1924.4,5.19637]
[1688256917263,17.97504562,1924.9,1924.4,5.19637]
[1688256917460,17.97504562,1924.9,1924.4,10.39279]
[1688256920206,5.19522,1924.9,1924.4,12.991]
[1688256920500,10.39043,1924.9,1924.4,12.991]
[1688256920985,10.39043,1924.9,1924.4,10.39279]
[1688256921192,12.98796,1924.9,1924.4,10.39279]
[1688256922301,4.09403252,1925.0,1924.4,12.991]
[1688256922520,9.28908252,1925.0,1924.5,1.2991]
[1688256922815,16.66891,1925.0,1924.6,10.39148]
[1688256923299,19.35643184,1925.0,1924.5,6.49509]
[1688256923487,19.35643184,1925.0,1924.5,11.69112]
[1688256923696,8.87645,1925.0,1924.6,1.169112]
[1688256923926,16.75903184,1925.0,1924.6,1.169112]
[1688256924202,17.67443184,1925.0,1924.5,6.49509]
[1688256926605,17.67443184,1925.0,1924.2,3.6256]
[1688256926811,4.02452184,1924.9,1924.2,7.18922]
[1688256927025,10.39128,1924.7,1924.2,7.18933]
[1688256927333,10.39128,1924.7,1924.2,6.569372]
[1688256927928,15.02218,1924.7,1924.2,11.766332]
[1688256929126,2.68752184,1924.6,1924.0,4.5477]
[1688256929283,2.68752184,1924.6,1923.9,4.0417032]
[1688256929284,14.33683,1924.5,1923.9,1.4429132]
[1688256929620,14.33683,1924.5,1923.9,10.39541]
[1688256929621,5.19682,1924.3,1923.9,10.39541]
[1688256929821,5.19682,1924.3,1923.9,12.99429]
[1688256930023,2.0905,1924.4,1923.9,14.34129]
[1688256930185,7.28695,1924.4,1923.9,14.34129]
[1688256930381,7.28695,1924.4,1924.1,10.39436]
[1688256932109,2.0905,1924.4,1924.1,10.39436]
[1688256933254,5.19598,1924.6,1924.1,10.39436]
[1688256933448,12.49278,1924.6,1924.1,12.99297]
[1688256935466,15.09072,1924.6,1924.1,12.99297]
[1688256935792,15.09072,1924.6,1924.1,14.9958789]
[1688256936675,12.49278,1924.6,1924.1,14.9958789]
[1688256936846,10.39198,1924.6,1924.1,14.9958789]
[1688256937447,12.98992,1924.6,1924.1,14.9958789]
[1688256943861,10.39198,1924.6,1924.1,14.9958789]
[1688256944062,10.39198,1924.6,1924.2,1.49958789]
[1688256944268,10.39198,1924.6,1924.3,5.19664]
[1688256944894,10.39198,1924.6,1924.3,10.39333]
[1688256945199,5.19596,1924.6,1924.3,12.99167]
[1688256945391,5.19592,1924.6,1924.3,14.33967]
[1688256950375,10.39184,1924.6,1924.3,5.1966]
[1688256951813,5.19592,1924.6,1924.3,10.39329]
[1688256952002,7.7936,1924.7,1924.3,11.692466]
[1688256952003,10.39156,1924.7,1924.3,11.692466]
[1688256954498,11.97700914,1924.8,1924.3,12.99163]
[1688256954674,6.78149914,1924.8,1924.3,12.99163]
[1688256955005,11.97700914,1924.8,1924.3,12.99163]
[1688256955491,10.40750914,1924.8,1924.3,12.99163]
[1688256956996,13.00517914,1924.8,1924.3,12.99163]
[1688256958288,13.00517914,1924.8,1924.3,14.761783]
[1688256961467,13.00517914,1924.8,1924.3,12.99163]
[1688256965501,13.00517914,1924.8,1924.3,5.1966]
[1688256965502,14.35317914,1924.8,1924.3,5.1966]
[1688256965807,14.35317914,1924.8,1924.2,13.75455]
[1688256968374,13.00517914,1924.8,1924.2,17.69703]
[1688256968708,13.00517914,1924.8,1924.3,1.769703]
[1688256968902,13.00517914,1924.8,1924.4,10.39268]
[1688256973013,13.00517914,1924.8,1924.4,5.19628]
[1688256980562,13.00517914,1924.8,1924.3,5.19659]
[1688256980829,13.00517914,1924.8,1923.9,1.6198]
[1688256980830,12.99153,1924.4,1923.9,1.6198]
[1688256980983,12.99153,1924.4,1923.8,1.9361]
[1688256981187,12.99153,1924.4,1923.8,7.13398]
[1688256981399,12.99153,1924.4,1923.9,5.19777]
[1688256981602,16.51863,1924.4,1923.9,10.39554]
[1688256981785,16.51863,1924.4,1923.9,12.044985]
[1688256982207,16.51863,1924.4,1923.9,6.847215]
[1688256982515,20.55515184,1924.4,1923.5,3.24750184]
[1688256982694,1.338,1924.1,1923.6,0.90321699]
[1688256982890,12.9941,1924.0,1923.5,1.5638]
[1688256983095,16.5712,1924.0,1923.5,12.69216031]
[1688256983524,16.5712,1924.0,1923.5,7.49331031]
[1688256984221,16.5712,1924.0,1923.5,14.04016031]
[1688256984525,16.5712,1924.0,1923.5,16.63958031]
[1688256988829,13.97238,1924.0,1923.5,16.63958031]
[1688256989145,16.57113,1924.0,1923.5,8.84131031]
[1688256989508,18.22989791,1924.0,1923.5,1.348]
[1688256990834,18.22989791,1924.0,1923.3,3.5459]
[1688256991041,18.22989791,1924.0,1923.3,10.09328]
[1688256991393,18.22989791,1924.0,1923.3,8.74528]
[1688256992105,26.11505975,1924.0,1923.3,1.6653]
[1688256992314,26.11505975,1924.0,1923.3,6.86466]
[1688256992315,12.99565,1923.8,1923.3,6.86466]
[1688256993107,14.55105,1923.8,1923.3,12.06405]
[1688256993313,14.55105,1923.8,1923.3,14.66374]
[1688256993544,14.55105,1923.8,1923.3,16.00774]
[1688256997947,14.55105,1923.8,1923.4,6.54293]
[1688256998940,14.55105,1923.8,1923.4,8.143658]
[1688256999735,14.55105,1923.8,1923.4,13.342778]
[1688257003961,11.95192,1923.8,1923.4,13.342778]
[1688257004979,14.55094,1923.8,1923.4,13.342778]
[1688257005120,14.55094,1923.8,1923.4,11.998778]
[1688257006719,14.55094,1923.8,1923.4,13.344778]
[1688257007855,14.55094,1923.8,1923.4,2.946728]
[1688257008065,16.265926,1923.8,1923.4,1.346]
[1688257008764,16.265926,1923.8,1923.4,6.54507]
[1688257009463,14.55094,1923.8,1923.4,6.54507]
[1688257011126,14.55094,1923.8,1923.4,5.19907]
[1688257015836,14.55094,1923.8,1923.4,10.39819]
[1688257017942,5.19826,1923.8,1923.5,1.337]
[1688257018148,10.39583,1923.9,1923.5,6.53565]
[1688257018462,5.19783,1923.9,1923.5,7.709122]
[1688257018669,10.39566,1923.9,1923.5,12.907972]
[1688257019629,12.99454,1923.9,1923.5,12.907972]
[1688257020052,12.99454,1923.9,1923.5,7.709122]
[1688257020252,12.99454,1923.9,1923.4,7.7985]
[1688257020253,15.68206184,1923.9,1923.3,1.6653]
[1688257020461,12.99611,1923.7,1923.3,1.6653]
[1688257020849,12.99611,1923.7,1923.3,6.86465]
[1688257021850,5.19845,1923.7,1923.4,1.338]
[1688257022169,5.19845,1923.7,1923.5,5.19885]
[1688257022667,5.19845,1923.7,1923.4,13.336223]
[1688257022830,5.19845,1923.7,1923.4,8.137163]
[1688257023581,5.19845,1923.7,1923.4,13.336283]
[1688257024449,10.3969,1923.7,1923.4,13.336283]
[1688257025271,10.39629,1923.8,1923.4,13.336283]
[1688257025473,6.90612,1923.8,1923.5,1.3336283]
[1688257025639,10.39629,1923.8,1923.5,6.5323483]
[1688257026365,12.99531,1923.8,1923.5,6.5323483]
[1688257027891,5.19812,1923.8,1923.5,11.7311983]
[1688257028039,5.19796,1923.9,1923.6,1.17311983]
[1688257028040,10.39598,1923.9,1923.6,1.17311983]
[1688257028367,10.39592,1923.9,1923.6,11.57013983]
[1688257029156,10.39592,1923.9,1923.6,6.37162983]
[1688257029883,10.39592,1923.9,1923.6,11.57020983]
[1688257030743,1.349,1924.4,1923.8,14.33155]
[1688257030744,10.39315,1924.4,1923.8,14.33155]
[1688257030948,10.39344,1924.3,1924.0,5.19735]
[1688257032574,10.39344,1924.3,1924.0,10.39485]
[1688257032952,10.39344,1924.3,1923.9,6.70982]
[1688257033154,12.99178,1924.3,1923.8,5.19796]
[1688257033365,12.99319,1924.1,1923.8,1.5877]
[1688257033558,13.00973914,1924.1,1923.5,1.3336283]
[1688257033755,16.62393914,1924.1,1923.5,11.1201283]
[1688257033977,19.31146098,1924.1,1923.5,11.1201283]
[1688257034283,19.31146098,1924.1,1923.6,1.11201283]
[1688257034577,19.31146098,1924.1,1923.7,5.19818]
[1688257034781,19.31146098,1924.1,1923.7,10.39649]
[1688257034989,14.02530914,1924.1,1923.7,10.39649]
[1688257035455,14.02530914,1924.1,1923.7,12.99564]
[1688257035659,8.82802914,1924.1,1923.7,14.80003328]
[1688257035850,14.02530914,1924.1,1923.7,14.80003328]
[1688257037880,16.62391914,1924.1,1923.7,12.20088328]
[1688257038689,16.62391914,1924.1,1923.7,7.00257328]
[1688257040862,15.06711914,1924.1,1923.5,7.2673283]
[1688257041217,2.68752184,1924.0,1923.2,5.1995]
[1688257041513,10.3963,1923.8,1923.3,7.1498876]
[1688257041653,12.99532,1923.8,1923.4,5.91408876]
[1688257041948,12.99532,1923.8,1923.4,0.71498876]
[1688257042149,12.99532,1923.8,1923.3,1.5343]
[1688257042382,12.99532,1923.8,1923.2,7.135]
[1688257042383,10.3976,1923.6,1923.0,6.55507467]
[1688257042689,11.7346,1923.6,1923.0,13.69949934]
[1688257042900,10.3976,1923.6,1923.0,13.68843467]
[1688257043109,10.3976,1923.6,1923.0,16.28853467]
[1688257043406,10.3976,1923.6,1923.1,1.62885347]
[1688257043684,6.45532184,1923.7,1923.2,12.99889]
[1688257043900,6.737216,1924.3,1923.2,12.99889]
[1688257044056,10.39646,1923.8,1923.4,12.99754]
[1688257044250,10.39646,1923.8,1923.4,14.782144]
[1688257046609,5.19785,1923.9,1923.4,16.126144]
[1688257046765,10.39575,1923.9,1923.4,16.126144]
[1688257046960,12.99463,1923.9,1923.5,1.6126144]
[1688257047292,12.99463,1923.9,1923.5,6.8113544]
[1688257048197,10.39575,1923.9,1923.5,15.9566244]
[1688257048497,12.50615,1924.0,1923.5,15.9566244]
[1688257048698,12.50615,1924.0,1923.6,1.59566244]
[1688257048995,5.19757,1924.0,1923.6,13.34157244]
[1688257049497,5.28602184,1924.2,1923.6,15.94086244]
[1688257049498,7.1236,1924.2,1923.6,15.94086244]
[1688257049700,7.1236,1924.2,1923.7,1.344]
[1688257050001,12.3206,1924.2,1923.8,10.39582]
[1688257050195,12.3206,1924.2,1923.8,11.829706]
[1688257052085,14.91908,1924.2,1923.8,11.829706]
[1688257052277,14.91908,1924.2,1923.8,10.39582]
[1688257056479,14.91908,1924.2,1923.6,5.06616244]
[1688257056705,14.91908,1924.2,1923.5,1.76358886]
[1688257056706,2.68752184,1924.1,1923.5,5.19874]
[1688257057017,12.9943,1924.0,1923.4,11.10886]
[1688257057246,2.68752184,1923.9,1923.4,3.0]
[1688257057405,10.39636,1923.8,1923.4,8.1991]
[1688257057611,10.39636,1923.8,1923.4,5.1991]
[1688257057612,12.99538,1923.8,1923.4,5.1991]
[1688257059236,12.99538,1923.8,1923.2,8.38026576]
[1688257059393,12.99538,1923.8,1923.2,15.155057]
[1688257059595,15.68290184,1923.8,1923.3,0.90330549]
[1688257059793,15.68290184,1923.8,1923.2,14.97445124]
[1688257059992,2.68752184,1923.7,1923.3,5.19932]
[1688257060198,10.39728,1923.6,1923.3,5.19932]
[1688257061011,10.39728,1923.6,1923.3,10.39871]
[1688257061304,12.99657,1923.6,1923.1,1.62885347]
[1688257061521,12.99657,1923.6,1923.1,5.19993]
[1688257061522,19.35539102,1923.6,1923.1,5.19993]
[1688257061708,19.35539102,1923.6,1923.1,10.39986]
[1688257061920,19.35539102,1923.6,1923.1,5.19993]
[1688257063392,19.35539102,1923.6,1923.0,5.20005]
[1688257063592,19.37194016,1923.6,1923.0,6.88353031]
[1688257063896,2.68752184,1923.5,1923.0,12.08373031]
[1688257064097,10.39851,1923.4,1923.0,12.08373031]
[1688257065427,10.39851,1923.4,1922.9,8.49643088]
[1688257065628,17.02259184,1923.4,1922.9,0.40632088]
[1688257065871,17.02259184,1923.4,1922.6,5.32155932]
[1688257065872,2.68752184,1923.3,1922.6,1.88789314]
[1688257066049,10.39992,1923.1,1922.7,0.90354746]
[1688257066228,10.39992,1923.1,1922.7,6.92764152]
[1688257066434,10.39992,1923.1,1922.7,6.02407406]
[1688257066645,10.39992,1923.1,1922.7,6.02397406]
[1688257066854,10.39992,1923.1,1922.7,11.22498406]
[1688257067055,10.39992,1923.1,1922.7,6.02397406]
[1688257067630,12.99988,1923.1,1922.7,6.02397406]
[1688257068166,12.99988,1923.1,1922.7,0.82309406]
[1688257068355,12.99988,1923.1,1922.7,6.02402406]
[1688257070472,12.99988,1923.1,1922.7,11.22503406]
[1688257070769,10.39992,1923.1,1922.7,6.02402406]
[1688257071344,10.39992,1923.1,1922.7,0.82309406]
[1688257071753,10.39992,1923.1,1922.7,6.02398406]
[1688257072848,12.99988,1923.1,1922.7,6.02398406]
[1688257073047,12.99988,1923.1,1922.7,0.82309406]
[1688257073265,12.99988,1923.1,1922.6,7.19271716]
[1688257073476,12.99988,1923.1,1922.6,1.99161716]
[1688257073677,0.01654914,1923.0,1922.6,0.40931716]
[1688257073888,10.40106,1922.9,1922.6,0.40931716]
[1688257074183,13.00129,1922.9,1922.5,5.33435113]
[1688257074474,13.00129,1922.9,1922.5,10.53577113]
[1688257074685,13.00129,1922.9,1922.5,10.40289]
[1688257075389,10.40106,1922.9,1922.5,10.40289]
[1688257075694,10.40106,1922.9,1922.4,3.9469]
[1688257075695,13.00129,1922.9,1922.4,6.54766]
[1688257075979,2.68752184,1922.8,1922.4,0.54140756]
[1688257076277,2.68752184,1922.8,1922.3,0.0621657]
[1688257076278,15.6032,1922.7,1922.3,0.0621657]
[1688257076479,2.68752184,1922.6,1922.3,0.0621657]
[1688257076666,13.0039,1922.5,1922.3,0.0621657]
[1688257078170,5.20142,1922.6,1922.3,0.0621657]
[1688257078350,5.20156,1922.5,1922.3,0.0621657]
[1688257078868,10.40312,1922.5,1922.3,0.0621657]
[1688257081377,13.0039,1922.5,1922.3,0.0621657]
[1688257083177,14.564357,1922.5,1922.3,0.0621657]
[1688257083378,17.26842798,1922.5,1922.3,0.0621657]
[1688257083821,14.58090614,1922.5,1922.3,0.0621657]
[1688257084318,13.02044914,1922.5,1922.3,0.0621657]
[1688257085111,15.70797098,1922.5,1922.3,0.0621657]
[1688257085993,13.02044914,1922.5,1922.3,0.0621657]
[1688257088425,13.0039,1922.5,1922.3,0.0621657]
[1688257092433,5.20119,1922.7,1922.3,5.2642657]
[1688257092633,5.20131,1922.6,1922.4,0.52642657]
[1688257092932,5.20131,1922.6,1922.3,11.8103657]
[1688257093140,10.40262,1922.6,1922.3,0.0621657]
[1688257093639,13.00326,1922.6,1922.3,0.0621657]
[1688257093937,0.01654914,1922.5,1922.3,0.0621657]
[1688257094148,10.40366,1922.4,1922.3,0.0621657]
[1688257101312,5.20183,1922.4,1922.3,0.0621657]
[1688257102842,10.40366,1922.4,1922.3,0.0621657]
[1688257103951,5.20183,1922.4,1922.3,0.0621657]
[1688257104249,10.40366,1922.4,1922.3,0.0621657]
[1688257104606,5.20183,1922.4,1922.3,0.0621657]
[1688257104807,10.40366,1922.4,1922.3,0.0621657]
[1688257105112,5.20183,1922.4,1922.3,0.0621657]
[1688257105984,10.40366,1922.4,1922.3,0.0621657]
[1688257106975,5.20183,1922.4,1922.3,0.0621657]
[1688257109869,1.838,1922.9,1922.3,0.0621657]
[1688257110032,10.40232,1922.7,1922.3,10.4663657]
[1688257111070,13.00282,1922.7,1922.3,5.2642657]
[1688257112172,17.72284602,1922.7,1922.3,0.0621657]
[1688257112466,19.06784602,1922.7,1922.3,0.0621657]
[1688257113475,3.20407098,1922.6,1922.3,0.0621657]
[1688257113684,14.3409,1922.5,1922.3,0.0621657]
[1688257113846,17.02842184,1922.5,1922.3,0.0621657]
[1688257114045,1.70284218,1922.4,1922.3,0.0621657]
[1688257114344,14.70741218,1922.4,1922.3,0.0621657]
[1688257115478,19.05541218,1922.4,1922.3,0.0621657]
[1688257115641,19.55541218,1922.4,1922.3,0.0621657]
[1688257116285,22.24293402,1922.4,1922.3,0.0621657]
[1688257116455,22.24293402,1922.4,1922.2,0.1]
[1688257116456,27.44476402,1922.4,1922.2,0.1]
[1688257116786,0.5,1922.0,1921.9,0.0043147]
[1688257116941,25.36470098,1922.0,1921.9,0.0043147]
[1688257117137,25.36470098,1922.0,1921.8,0.23415548]
[1688257117361,25.36470098,1922.0,1921.5,0.1]
[1688257117362,20.81488,1921.7,1921.5,0.1]
[1688257117560,20.26589102,1921.6,1921.5,0.1]
[1688257117761,22.12744016,1921.6,1921.5,0.1]
[1688257117966,22.33582316,1921.6,1921.5,0.1]
[1688257118172,22.33582316,1921.6,1921.2,1.4851963]
[1688257118378,1.349,1921.5,1921.2,1.4851963]
[1688257118554,0.40856156,1922.5,1921.6,0.54246161]
[1688257118755,0.13234312,1922.6,1922.4,1.34]
[1688257118756,10.40282,1922.6,1922.4,1.34]
[1688257119083,5.20141,1922.6,1922.4,1.34]
[1688257119441,5.20141,1922.6,1922.3,5.20207]
[1688257119679,5.20004,1923.1,1922.5,1.346]
[1688257119888,5.20004,1923.1,1922.8,6.54974]
[1688257119889,5.19999,1923.1,1922.8,6.54974]
[1688257120080,5.19999,1923.1,1922.8,5.20074]
[1688257120454,12.99994,1923.1,1922.6,5.20114]
[1688257120703,12.99994,1923.1,1922.4,7.0307]
[1688257120704,14.34894,1923.1,1922.4,7.0307]
[1688257120997,2.82724399,1923.4,1922.5,1.895]
[1688257121228,2.82724399,1923.4,1922.6,10.40214]
[1688257121229,10.40022,1923.1,1922.6,10.40214]
[1688257121361,10.40022,1923.1,1922.6,13.48278]
[1688257121792,5.19952,1923.3,1922.7,1.895]
[1688257121998,5.19897,1923.5,1922.9,1.883]
[1688257122202,2.59881,1924.0,1923.2,1.895]
[1688257122363,2.59881,1924.0,1923.4,5.199]
[1688257122364,5.1981,1923.8,1923.4,5.199]
[1688257122676,6.237701,1923.8,1923.4,5.199]
[1688257123000,11.435801,1923.8,1923.3,5.19925]
[1688257123206,15.920821,1923.8,1923.1,3.5787]
[1688257123378,4.58252184,1923.7,1923.1,5.19972]
[1688257123872,5.19823,1923.8,1923.2,0.48]
[1688257124070,5.19763,1924.0,1923.3,12.99805]
[1688257124286,10.39526,1924.0,1923.4,0.48]
[1688257124461,10.39526,1924.0,1923.5,10.39745]
[1688257124667,12.99401,1924.0,1923.4,5.67899]
[1688257124895,4.57252184,1923.9,1923.2,3.0]
[1688257125198,4.57252184,1923.9,1923.3,0.48]
[1688257125199,10.39668,1923.7,1923.3,0.48]
[1688257125400,10.39668,1923.7,1923.3,5.19939]
[1688257125604,10.39668,1923.7,1922.9,1.9944]
[1688257125605,2.68752184,1923.6,1923.1,5.19982]
[1688257125801,2.68752184,1923.6,1922.9,4.59463]
[1688257125802,12.99747,1923.5,1922.9,1.9944]
[1688257125971,0.01654914,1923.4,1922.7,5.20089]
[1688257126170,0.01654914,1923.4,1922.7,5.20087]
[1688257126171,10.39936,1923.2,1922.7,5.20087]
[1688257126636,5.19968,1923.2,1922.7,10.40188]
[1688257126915,10.39906,1923.3,1922.7,10.40188]
[1688257127066,0.01654914,1923.2,1922.6,1.9601]
[1688257127267,4.1697341,1923.4,1922.7,2.68752184]
[1688257127268,1.5701541,1923.4,1922.7,2.68752184]
[1688257127502,10.39742,1923.6,1922.7,2.68752184]
[1688257127670,10.39742,1923.6,1922.9,14.8957]
[1688257127671,15.68424184,1923.6,1922.9,14.8957]
[1688257127866,15.70079098,1923.6,1922.9,10.40056]
[1688257128279,13.10150098,1923.6,1922.9,10.40056]
[1688257128573,13.10150098,1923.6,1922.9,13.00079]
[1688257128795,14.67156808,1923.6,1923.1,5.19983]
[1688257129112,5.19926,1923.4,1923.0,5.20009]
[1688257129607,5.19912,1923.5,1923.0,13.00039]
[1688257129909,5.19816,1923.8,1923.0,15.68791184]
[1688257130137,5.32805319,1924.2,1923.2,2.0]
[1688257130336,0.41974797,1924.1,1923.5,12.99712]
[1688257130630,6.0408533,1924.1,1923.6,1.895]
[1688257130777,6.0408533,1924.1,1923.7,10.39643]
[1688257131333,0.42068978,1924.4,1923.7,17.57810184]
[1688257131616,5.19547,1924.8,1924.2,1.895]
[1688257131829,2.0618,1924.9,1924.3,12.99147]
[1688257131830,5.19518,1924.9,1924.3,12.99147]
[1688257131976,10.38929,1925.1,1924.4,3.0]
[1688257132181,0.41581592,1924.9,1924.1,3.7303]
[1688257132486,1.877,1924.9,1924.2,13.39369]
[1688257132674,5.74977424,1925.1,1924.5,12.9901]
[1688257132874,5.74977424,1925.1,1924.3,3.16752184]
[1688257132875,5.19455,1925.1,1924.3,3.16752184]
[1688257133116,12.98634,1925.1,1924.4,5.19619]
[1688257133415,3.98615584,1925.0,1924.4,10.39261]
[1688257133580,5.19432,1925.2,1924.4,12.99082]
[1688257133911,2.68752184,1925.1,1924.6,5.19578]
[1688257134076,10.39036,1924.9,1924.1,11.92731]
[1688257134281,15.67541184,1924.9,1924.2,5.67684]
[1688257134505,15.67541184,1924.9,1924.2,10.87367]
[1688257134813,6.76304118,1924.8,1924.2,10.87367]
[1688257135217,6.76304118,1924.8,1924.1,6.7303]
[1688257135218,2.68752184,1924.7,1924.1,6.7303]
[1688257135375,10.39236,1924.5,1923.9,5.19774]
[1688257135576,10.39236,1924.5,1924.0,5.19749]
[1688257135822,1.039236,1924.4,1924.0,5.19749]
[1688257136110,6.235736,1924.4,1924.0,5.19749]
[1688257136310,6.235736,1924.4,1923.7,3.4804]
[1688257136311,11.432236,1924.4,1923.7,8.67863]
[1688257136509,16.71796784,1924.4,1923.7,7.0932]
[1688257136722,0.5,1924.7,1923.7,1.895]
[1688257136723,10.3943,1924.2,1923.7,1.895]
[1688257137015,10.3943,1924.2,1923.7,7.09329]
[1688257137319,5.19712,1924.2,1923.7,12.2916]
[1688257137614,10.3951,1924.0,1923.2,3.4755]
[1688257137915,5.19834,1923.7,1923.2,1.5805]
[1688257138120,1.03951,1923.9,1923.2,12.99913]
[1688257138410,11.4355,1923.9,1923.2,12.2783]
[1688257138615,14.05092914,1923.9,1923.1,5.1998]
[1688257138789,14.05092914,1923.9,1922.9,9.00474]
[1688257138790,5.19869,1923.6,1922.9,9.00474]
[1688257138988,5.19844,1923.7,1923.0,7.88768184]
[1688257139195,5.19862,1923.6,1923.0,7.88768184]
[1688257140001,5.19862,1923.6,1922.7,13.94109]
[1688257140002,2.68752184,1923.5,1922.7,13.94109]
[1688257140208,12.99869,1923.3,1922.7,3.5393]
[1688257140434,6.499369,1923.3,1922.7,11.985649]
[1688257140590,1.299869,1923.3,1922.7,11.985649]
[1688257140791,10.39863,1923.4,1922.7,14.586149]
[1688257140991,5.19941,1923.3,1922.7,11.985649]